Workbook

Sheet Ideological History of SCOTUS
C1: 1937 | D1: 1938 | E1: 1939 | F1: 1940 | G1: 1941 | H1: 1942 | I1: 1943 | J1: 1944 | K1: 1945 | L1: 1946 | M1: 1947 | N1: 1948 | O1: 1949 | P1: 1950 | Q1: 1951 | R1: 1952 | S1: 1953 | T1: 1954 | U1: 1955 | V1: 1956 | W1: 1957 | X1: 1958 | Y1: 1959 | Z1: 1960 | AA1: 1961 | AB1: 1962 | AC1: 1963 | AD1: 1964 | AE1: 1965 | AF1: 1966 | AG1: 1967 | AH1: 1968 | AI1: 1969 | AJ1: 1970 | AK1: 1971 | AL1: 1972 | AM1: 1973 | AN1: 1974 | AO1: 1975 | AP1: 1976 | AQ1: 1977 | AR1: 1978 | AS1: 1979 | AT1: 1980 | AU1: 1981 | AV1: 1982 | AW1: 1983 | AX1: 1984 | AY1: 1985 | AZ1: 1986 | BA1: 1987 | BB1: 1988 | BC1: 1989 | BD1: 1990 | BE1: 1991 | BF1: 1992 | BG1: 1993 | BH1: 1994 | BI1: 1995 | BJ1: 1996 | BK1: 1997 | BL1: 1998 | BM1: 1999 | BN1: 2000 | BO1: 2001 | BP1: 2002 | BQ1: 2003 | BR1: 2004 | BS1: 2005 | BT1: 2006 | BU1: 2007 | BV1: 2008 | BW1: 2009 | BX1: 2010 | BY1: 2011 | BZ1: 2012 | CA1: 2013 | CB1: 2014 | CD1: AVG
B2: Chief Justice | C2: -0.455 | D2: -0.299 | E2: 0.302 | F2: 0.841 | G2: 0.399 | H2: 0.27 | I2: 0.174 | J2: 0.522 | K2: 0.585 | L2: 0.437 | M2: 0.582 | N2: 0.887 | O2: 1.111 | P2: 1.223 | Q2: 1.437 | R2: 1.356 | S2: -0.005 | T2: -0.456 | U2: -1.072 | V2: -1.249 | W2: -1.515 | X2: -1.562 | Y2: -1.528 | Z2: -1.368 | AA2: -1.464 | AB2: -1.338 | AC2: -1.282 | AD2: -1.074 | AE2: -1.156 | AF2: -1.228 | AG2: -1.232 | AH2: -1.245 | AI2: 2.011 | AJ2: 2.251 | AK2: 2.497 | AL2: 2.322 | AM2: 2.266 | AN2: 2.183 | AO2: 2.035 | AP2: 1.926 | AQ2: 1.595 | AR2: 1.452 | AS2: 1.214 | AT2: 1.389 | AU2: 1.5 | AV2: 1.362 | AW2: 1.54 | AX2: 1.865 | AY2: 2.004 | AZ2: 3.234 | BA2: 2.828 | BB2: 2.682 | BC2: 2.498 | BD2: 2.253 | BE2: 1.954 | BF2: 1.887 | BG2: 1.704 | BH2: 1.697 | BI2: 1.668 | BJ2: 1.526 | BK2: 1.476 | BL2: 1.688 | BM2: 1.596 | BN2: 1.608 | BO2: 1.357 | BP2: 1.186 | BQ2: 1.351 | BR2: 1.464 | BS2: 1.475 | BT2: 1.487 | BU2: 1.461 | BV2: 1.496 | BW2: 1.394 | BX2: 1.435 | BY2: 1.263 | BZ2: 1.201 | CA2: 0.959 | CB2: 0.869 | CD2: =AVERAGE(C2:CB2) -> 0.9065
C3: Charles Evans Hughes | G3: Harlan Stone | L3: Fred Vinson | S3: Earl Warren | AI3: Warren Burger | AZ3: William Rehnquist | BS3: John Roberts
B5: Associate Justice (Seat 3) | C5: 2.894 | D5: 2.902 | E5: 2.67 | F5: 2.175 | G5: -0.196 | H5: -1.13 | I5: -1.168 | J5: -1.331 | K5: -1.158 | L5: -1.405 | M5: -1.74 | N5: -1.835 | O5: 1.167 | P5: 1.322 | Q5: 1.376 | R5: 1.192 | S5: 0.857 | T5: 0.881 | U5: 0.93 | V5: -0.619 | W5: -0.745 | X5: -0.747 | Y5: -0.902 | Z5: -0.915 | AA5: -0.773 | AB5: -1.017 | AC5: -0.877 | AD5: -0.743 | AE5: -0.905 | AF5: -1.054 | AG5: -1.104 | AH5: -0.976 | AI5: -0.888 | AJ5: -0.986 | AK5: -1.144 | AL5: -1.411 | AM5: -1.749 | AN5: -2.034 | AO5: -2.604 | AP5: -2.896 | AQ5: -3.006 | AR5: -2.992 | AS5: -2.955 | AT5: -2.803 | AU5: -2.787 | AV5: -2.627 | AW5: -2.922 | AX5: -3.133 | AY5: -3.238 | AZ5: -3.498 | BA5: -3.578 | BB5: -3.684 | BC5: -3.737 | BD5: 0.969 | BE5: 0.573 | BF5: 0.158 | BG5: -0.371 | BH5: -0.538 | BI5: -0.58 | BJ5: -0.623 | BK5: -0.777 | BL5: -0.907 | BM5: -1.268 | BN5: -1.418 | BO5: -1.54 | BP5: -1.612 | BQ5: -1.746 | BR5: -1.722 | BS5: -1.614 | BT5: -1.503 | BU5: -1.532 | BV5: -1.554 | BW5: -1.546 | BX5: -1.607 | BY5: -1.725 | BZ5: -2.071 | CA5: -2.247 | CB5: -2.354 | CD5: =AVERAGE(C5:CB5) -> -1.112833333
B7: Associate Justice (Seat 2) | C7: -1.749 | D7: -1.29 | E7: -1.215 | F7: -0.707 | G7: 0.09 | H7: 0.416 | I7: 0.428 | J7: 0.412 | K7: 0.674 | L7: 1.029 | M7: 0.914 | N7: 0.654 | O7: 0.375 | P7: 0.231 | Q7: 0.078 | R7: 0.05 | S7: 0.38 | T7: 0.389 | U7: 0.7 | V7: 0.903 | W7: 1.274 | X7: 1.602 | Y7: 1.767 | Z7: 1.846 | AA7: 1.861 | AB7: -0.813 | AC7: -0.952 | AD7: -0.607 | AE7: -1.259 | AF7: -1.354 | AG7: -1.164 | AH7: -1.023 | AI7: n/a | AJ7: 1.896 | AK7: 1.841 | AL7: 1.493 | AM7: 1.339 | AN7: 1.058 | AO7: 0.881 | AP7: 0.654 | AQ7: 0.272 | AR7: 0.104 | AS7: -0.075 | AT7: -0.166 | AU7: -0.489 | AV7: -0.561 | AW7: -0.102 | AX7: -0.23 | AY7: -0.789 | AZ7: -0.956 | BA7: -0.963 | BB7: -0.998 | BC7: -0.881 | BD7: -1.187 | BE7: -1.445 | BF7: -1.599 | BG7: -1.863 | BH7: -0.508 | BI7: -0.745 | BJ7: -0.995 | BK7: -1.073 | BL7: -1.062 | BM7: -1.058 | BN7: -1.419 | BO7: -1.429 | BP7: -1.402 | BQ7: -1.319 | BR7: -1.205 | BS7: -1.438 | BT7: -1.527 | BU7: -1.429 | BV7: -1.216 | BW7: -1.336 | BX7: -1.416 | BY7: -1.415 | BZ7: -1.43 | CA7: -1.549 | CB7: -1.729 | CD7: =AVERAGE(C7:CB7) -> -0.3315064935
B9: Associate Justice (Seat 4) | C9: -0.54 | D9: -0.505 | E9: -2.9 | F9: -3.027 | G9: -2.973 | H9: -2.668 | I9: -2.297 | J9: -1.889 | K9: -1.708 | L9: -1.421 | M9: -1.531 | N9: -1.748 | O9: -1.608 | P9: -1.495 | Q9: -1.702 | R9: -2.359 | S9: -2.964 | T9: -3.567 | U9: -4.032 | V9: -4.428 | W9: -4.73 | X9: -4.965 | Y9: -5.118 | Z9: -5.253 | AA9: -5.373 | AB9: -5.467 | AC9: -5.58 | AD9: -5.747 | AE9: -5.892 | AF9: -6.017 | AG9: -6.141 | AH9: -6.258 | AI9: -6.336 | AJ9: -6.419 | AK9: -6.488 | AL9: -6.507 | AM9: -6.554 | AN9: -6.619 | AO9: 0.031 | AP9: -0.133 | AQ9: -0.026 | AR9: -0.305 | AS9: -0.277 | AT9: -0.279 | AU9: -0.267 | AV9: -0.564 | AW9: -0.615 | AX9: -0.506 | AY9: -0.485 | AZ9: -0.597 | BA9: -0.531 | BB9: -0.661 | BC9: -1.069 | BD9: -1.763 | BE9: -2.158 | BF9: -2.333 | BG9: -2.547 | BH9: -2.907 | BI9: -3.132 | BJ9: -3.234 | BK9: -3.191 | BL9: -3.148 | BM9: -3.056 | BN9: -2.904 | BO9: -2.814 | BP9: -2.697 | BQ9: -2.66 | BR9: -2.588 | BS9: -2.495 | BT9: -2.518 | BU9: -2.435 | BV9: -2.648 | BW9: -2.669 | BX9: -1.444 | BY9: -1.449 | BZ9: -1.745 | CA9: -1.766 | CB9: -1.913 | CD9: =AVERAGE(C9:CB9) -> -2.811846154
B11: Associate Justice (Seat 1) | C11: -2.908 | D11: -3.191 | E11: -3.278 | F11: -3.306 | G11: -3.199 | H11: -2.944 | I11: -2.624 | J11: -2.503 | K11: -2.122 | L11: -1.932 | M11: -1.801 | N11: -1.646 | O11: -1.678 | P11: -1.633 | Q11: -1.525 | R11: -1.24 | S11: -1.576 | T11: -1.65 | U11: -1.931 | V11: -2.115 | W11: -2.174 | X11: -2.056 | Y11: -2.017 | Z11: -1.892 | AA11: -1.793 | AB11: -1.704 | AC11: -1.468 | AD11: -0.979 | AE11: -0.604 | AF11: -0.318 | AG11: -0.107 | AH11: -0.008 | AI11: 0.079 | AJ11: 0.06 | AK11: 1.51 | AL11: 1.3 | AM11: 1.253 | AN11: 1.146 | AO11: 0.962 | AP11: 0.722 | AQ11: 0.462 | AR11: 0.804 | AS11: 0.809 | AT11: 0.824 | AU11: 0.891 | AV11: 1.093 | AW11: 0.955 | AX11: 0.675 | AY11: 0.788 | AZ11: 0.758 | BA11: 1.142 | BB11: 1.414 | BC11: 1.32 | BD11: 1.123 | BE11: 0.761 | BF11: 0.9 | BG11: 0.74 | BH11: 0.683 | BI11: 0.571 | BJ11: 0.688 | BK11: 0.633 | BL11: 0.736 | BM11: 0.944 | BN11: 0.889 | BO11: 0.986 | BP11: 0.828 | BQ11: 0.723 | BR11: 0.5 | BS11: 0.405 | BT11: 0.396 | BU11: 0.292 | BV11: 0.532 | BW11: 0.526 | BX11: 0.615 | BY11: 0.329 | BZ11: 0.291 | CA11: 0.124 | CB11: -0.15 | CD11: =AVERAGE(C11:CB11) -> -0.3319230769
B13: Associate Justice (Seat 6) | C13: 2.055 | D13: -1.094 | E13: -1.013 | F13: -0.633 | G13: -0.234 | H13: 0.174 | I13: 0.026 | J13: -0.21 | K13: -0.015 | L13: 0.255 | M13: 0.564 | N13: 0.7 | O13: 1.075 | P13: 1.185 | Q13: 1.221 | R13: 1.298 | S13: 1.482 | T13: 1.493 | U13: 1.093 | V13: 0.876 | W13: 1.074 | X13: 1.378 | Y13: 1.488 | Z13: 1.311 | AA13: 1.241 | AB13: -0.043 | AC13: 0.022 | AD13: -0.069 | AE13: -0.051 | AF13: 0.11 | AG13: 0.192 | AH13: 0.15 | AI13: 0.287 | AJ13: 0.607 | AK13: 0.778 | AL13: 1.053 | AM13: 0.611 | AN13: 0.61 | AO13: 0.525 | AP13: 0.326 | AQ13: -0.073 | AR13: -0.046 | AS13: 0.146 | AT13: 0.072 | AU13: 0.02 | AV13: 0.47 | AW13: 0.75 | AX13: 0.953 | AY13: 1.172 | AZ13: 1.196 | BA13: 0.955 | BB13: 1.026 | BC13: 0.791 | BD13: 0.551 | BE13: 0.522 | BF13: 0.508 | BG13: -0.326 | BH13: -0.585 | BI13: -0.668 | BJ13: -0.883 | BK13: -1.109 | BL13: -1.349 | BM13: -1.707 | BN13: -1.795 | BO13: -1.806 | BP13: -1.795 | BQ13: -1.821 | BR13: -1.726 | BS13: -1.498 | BT13: -1.609 | BU13: -1.591 | BV13: -1.66 | BW13: -1.633 | BX13: -2.056 | BY13: -2.343 | BZ13: -2.447 | CA13: -2.414 | CB13: -2.461 | CD13: =AVERAGE(C13:CB13) -> -0.05603846154
B15: Associate Justice (Seat 8) | C15: -0.043 | D15: 0.378 | E15: 1.036 | F15: 1.725 | G15: 1.939 | H15: 2.204 | I15: 2.585 | J15: 2.946 | K15: 0.492 | L15: 0.554 | M15: 0.897 | N15: 0.966 | O15: 0.961 | P15: 0.979 | Q15: 0.924 | R15: 1.229 | S15: 1.318 | T15: 1.287 | U15: 1.291 | V15: 1.283 | W15: 1.131 | X15: 0.897 | Y15: 0.664 | Z15: 0.536 | AA15: 0.487 | AB15: 0.655 | AC15: 0.489 | AD15: 0.654 | AE15: 0.841 | AF15: 0.917 | AG15: 0.476 | AH15: 0.677 | AI15: 0.633 | AJ15: 0.609 | AK15: 0.208 | AL15: 0.19 | AM15: 0.548 | AN15: 0.421 | AO15: 0.54 | AP15: 0.496 | AQ15: 0.325 | AR15: 0.553 | AS15: 0.489 | AT15: 0.673 | AU15: 1.499 | AV15: 1.648 | AW15: 1.588 | AX15: 1.454 | AY15: 1.233 | AZ15: 1.332 | BA15: 1.508 | BB15: 1.433 | BC15: 1.423 | BD15: 1.007 | BE15: 0.563 | BF15: 0.698 | BG15: 0.872 | BH15: 0.659 | BI15: 0.691 | BJ15: 0.812 | BK15: 0.897 | BL15: 0.772 | BM15: 0.721 | BN15: 0.481 | BO15: 0.301 | BP15: 0.215 | BQ15: 0.166 | BR15: 0.073 | BS15: -0.041 | BT15: 1.536 | BU15: 1.62 | BV15: 1.839 | BW15: 1.874 | BX15: 2.047 | BY15: 2.098 | BZ15: 2.141 | CA15: 2.13 | CB15: 2.037 | CD15: =AVERAGE(C15:CB15) -> 1.004961538
B17: Associate Justice (Seat 9) | C17: -0.809 | D17: -0.779 | E17: -0.777 | F17: -0.326 | G17: 0.399 | H17: 0.271 | I17: 0.186 | J17: 0.235 | K17: 0.641 | L17: 1.046 | M17: 1.183 | N17: 1.327 | O17: 0.932 | P17: 0.818 | Q17: 0.739 | R17: 0.955 | S17: 0.879 | T17: 0.908 | U17: 1.134 | V17: 1.35 | W17: 1.639 | X17: 1.774 | Y17: 1.906 | Z17: 1.998 | AA17: 2.288 | AB17: 2.507 | AC17: 2.519 | AD17: 2.333 | AE17: 2.201 | AF17: 1.882 | AG17: 1.325 | AH17: 0.81 | AI17: 0.688 | AJ17: 0.585 | AK17: 3.589 | AL17: 3.962 | AM17: 4.22 | AN17: 4.305 | AO17: 4.408 | AP17: 4.364 | AQ17: 4.315 | AR17: 4.316 | AS17: 4.338 | AT17: 4.184 | AU17: 4.037 | AV17: 3.947 | AW17: 3.874 | AX17: 3.685 | AY17: 3.478 | AZ17: 1.419 | BA17: 1.572 | BB17: 1.706 | BC17: 1.885 | BD17: 2.044 | BE17: 2.365 | BF17: 2.376 | BG17: 2.453 | BH17: 2.679 | BI17: 2.925 | BJ17: 3.145 | BK17: 3.227 | BL17: 3.237 | BM17: 3.351 | BN17: 3.387 | BO17: 3.275 | BP17: 3.007 | BQ17: 2.801 | BR17: 2.563 | BS17: 2.525 | BT17: 2.566 | BU17: 2.484 | BV17: 2.427 | BW17: 2.375 | BX17: 2.189 | BY17: 2.105 | BZ17: 1.768 | CA17: 1.646 | CB17: 1.583 | CD17: =AVERAGE(C17:CB17) -> 2.139410256
B19: Associate Justice (Seat 10) | C19: 1.826 | D19: 2.084 | E19: -1.586 | F19: -1.542 | G19: -1.5 | H19: -1.643 | I19: -1.734 | J19: -1.456 | K19: -1.354 | L19: -1.768 | M19: -1.71 | N19: -1.596 | O19: 1.047 | P19: 1.094 | Q19: 1.182 | R19: 1.131 | S19: 0.598 | T19: 0.171 | U19: 0.078 | V19: 0.263 | W19: 0.612 | X19: 0.548 | Y19: 0.435 | Z19: 0.787 | AA19: 0.409 | AB19: 0.208 | AC19: 0.175 | AD19: 0.006 | AE19: -0.07 | AF19: 0.066 | AG19: -0.959 | AH19: -0.974 | AI19: -0.903 | AJ19: -0.933 | AK19: -1.033 | AL19: -1.325 | AM19: -1.479 | AN19: -1.533 | AO19: -2.108 | AP19: -2.424 | AQ19: -2.727 | AR19: -3.114 | AS19: -3.384 | AT19: -3.57 | AU19: -3.699 | AV19: -3.876 | AW19: -3.931 | AX19: -4 | AY19: -4.083 | AZ19: -4.26 | BA19: -4.411 | BB19: -4.485 | BC19: -4.465 | BD19: -4.307 | BE19: 2.687 | BF19: 2.938 | BG19: 3.273 | BH19: 3.44 | BI19: 3.509 | BJ19: 3.579 | BK19: 3.589 | BL19: 3.613 | BM19: 3.563 | BN19: 3.597 | BO19: 3.574 | BP19: 3.724 | BQ19: 3.758 | BR19: 3.82 | BS19: 3.868 | BT19: 3.852 | BU19: 3.752 | BV19: 3.536 | BW19: 3.422 | BX19: 3.275 | BY19: 3.263 | BZ19: 3.234 | CA19: 3.253 | CB19: 3.24 | CD19: =AVERAGE(C19:CB19) -> 0.1556025641
B21: Location of Median Justice | C21: =MEDIAN(C2,C5,C7,C9,C11,C13,C15,C17,C19) -> -0.455 | D21: =MEDIAN(D2,D5,D7,D9,D11,D13,D15,D17,D19) -> -0.505 | E21: -1.013 | F21: -0.633 | G21: -0.196 | H21: 0.174 | I21: 0.026 | J21: -0.21 | K21: -0.015 | L21: 0.255 | M21: 0.564 | N21: 0.654 | O21: 0.961 | P21: 0.979 | Q21: 0.924 | R21: 1.131 | S21: 0.598 | T21: 0.389 | U21: 0.7 | V21: 0.263 | W21: 0.612 | X21: 0.548 | Y21: 0.435 | Z21: 0.536 | AA21: 0.409 | AB21: -0.813 | AC21: -0.877 | AD21: -0.607 | AE21: -0.604 | AF21: -0.318 | AG21: -0.959 | AH21: -0.974 | AI21: 0.183 | AJ21: 0.585 | AK21: 0.778 | AL21: 1.053 | AM21: 0.611 | AN21: 0.61 | AO21: 0.54 | AP21: 0.496 | AQ21: 0.272 | AR21: 0.104 | AS21: 0.146 | AT21: 0.072 | AU21: 0.02 | AV21: 0.47 | AW21: 0.75 | AX21: 0.675 | AY21: 0.788 | AZ21: 0.758 | BA21: 0.955 | BB21: 1.026 | BC21: 0.791 | BD21: 0.969 | BE21: 0.573 | BF21: 0.698 | BG21: 0.74 | BH21: 0.659 | BI21: 0.571 | BJ21: 0.688 | BK21: 0.633 | BL21: 0.736 | BM21: 0.721 | BN21: 0.481 | BO21: 0.301 | BP21: =MEDIAN(BP2,BP5,BP7,BP9,BP11,BP13,BP15,BP17,BP19) -> 0.215 | BQ21: 0.166 | BR21: 0.073 | BS21: -0.041 | BT21: 0.396 | BU21: 0.292 | BV21: 0.532 | BW21: 0.526 | BX21: 0.615 | BY21: 0.329 | BZ21: 0.291 | CA21: 0.124 | CB21: -0.15 | CD21: =AVERAGE(C21:CB21) -> 0.3179487179
B22: Court Average | C22: =AVERAGE(C2:C19) -> 0.03011111111 | D22: -0.1993333333 | E22: -0.7512222222 | F22: -0.5333333333 | G22: -0.5861111111 | H22: -0.5611111111 | I22: -0.4915555556 | J22: -0.3637777778 | K22: -0.4405555556 | L22: -0.3561111111 | M22: -0.2935555556 | N22: -0.2545555556 | O22: 0.3757777778 | P22: 0.4137777778 | Q22: 0.4144444444 | R22: 0.4013333333 | S22: 0.1076666667 | T22: -0.06044444444 | U22: -0.201 | V22: -0.4151111111 | W22: -0.3815555556 | X22: -0.3478888889 | Y22: -0.3672222222 | Z22: -0.3277777778 | AA22: -0.3463333333 | AB22: -0.7791111111 | AC22: -0.7726666667 | AD22: -0.6917777778 | AE22: -0.7661111111 | AF22: -0.7773333333 | AG22: -0.9682222222 | AH22: -0.983 | AI22: -0.553625 | AJ22: -0.2588888889 | AK22: 0.1953333333 | AL22: 0.1196666667 | AM22: 0.05055555556 | AN22: -0.05144444444 | AO22: 0.5188888889 | AP22: 0.3372222222 | AQ22: 0.1263333333 | AR22: 0.08577777778 | AS22: 0.03388888889 | AT22: 0.036 | AU22: 0.07833333333 | AV22: 0.09911111111 | AW22: 0.1263333333 | AX22: 0.08477777778 | AY22: 0.008888888889 | AZ22: -0.1524444444 | BA22: -0.1642222222 | BB22: -0.1741111111 | BC22: -0.2483333333 | BD22: 0.07666666667 | BE22: 0.6468888889 | BF22: 0.6147777778 | BG22: 0.4372222222 | BH22: 0.5133333333 | BI22: 0.471 | BJ22: 0.4461111111 | BK22: 0.408 | BL22: 0.3977777778 | BM22: 0.3428888889 | BN22: 0.2695555556 | BO22: =AVERAGE(BO2:BO19) -> 0.2115555556 | BP22: 0.1615555556 | BQ22: 0.1392222222 | BR22: 0.131 | BS22: 0.1318888889 | BT22: 0.2977777778 | BU22: 0.2913333333 | BV22: =AVERAGE(BV2,BV5:BV19) -> 0.3057777778 | BW22: 0.2674444444 | BX22: 0.3375555556 | BY22: 0.2362222222 | BZ22: 0.1046666667 | CA22: 0.01511111111 | CB22: -0.09755555556 | CD22: =AVERAGE(C22:CB22) -> -0.04894675926
B24: Presidential Party
B25: Control of Congress
B27: Notable Cases
A28: *ideology numbers are Martin-Quinn scores; conservative scores are positive and darker red, liberal scores are negative and darker blue.

Sheet Sources
A2: Sources:
A3: http://en.wikipedia.org/wiki/List_of_Justices_of_the_Supreme_Court_of_the_United_States_by_seat
A4: http://en.wikipedia.org/wiki/Divided_government
A5: http://mqscores.wustl.edu/
A7: Designer:
A8: Original Design by Alex Lundry
A9: http://twitter.com/alexlundry
A11: Photo Credits:
A12: Supreme Court Building: http://www.flickr.com/photos/kjetilhr/
A13: Justice Souter: Supreme Court Archives
